bitfinex/quotes_ETHUSD_20240828
["timestamp","ask_amount","ask_price","bid_price","bid_amount"]
[1724850825294,7.912,2527.8,2527.7,2.4885]
[1724850827098,3.956,2527.8,2527.7,2.4885]
[1724850827982,7.912,2527.8,2527.7,2.4885]
[1724850828481,3.956,2527.8,2527.7,2.4885]
[1724850828911,7.912,2527.8,2527.7,2.4885]
[1724850829128,3.956,2527.8,2527.7,2.4885]
[1724850829687,7.912,2527.8,2527.7,2.4885]
[1724850830709,3.956,2527.8,2527.7,2.4885]
[1724850831216,3.956,2527.8,2527.7,2.60746921]
[1724850833031,3.95528,2528.3,2527.7,2.86821613]
[1724850833032,3.95565,2528.1,2527.7,2.86821613]
[1724850833201,3.95564,2528.1,2527.7,2.94732856]
[1724850833678,3.9557,2528.0,2527.7,2.94732856]
[1724850834696,3.95588,2527.9,2527.7,2.94732856]
[1724850834852,3.95588,2527.9,2527.7,2.60746921]
[1724850835048,3.956,2527.8,2527.7,2.60746921]
[1724850835748,3.956,2527.8,2527.7,22.1700793]
[1724850837288,7.912,2527.8,2527.7,19.6815793]
[1724850839571,3.956,2527.8,2527.7,19.6815793]
[1724850840182,3.956,2527.8,2527.7,22.0170793]
[1724850840366,3.95586,2527.9,2527.7,22.0170793]
[1724850840700,3.95586,2527.9,2527.7,24.61443323]
[1724850840995,3.95586,2527.9,2527.7,22.0170793]
[1724850841565,3.9557,2528.0,2527.8,19.56261009]
[1724850841877,3.9557,2528.0,2527.9,0.11894688]
[1724850844613,3.95558,2528.1,2527.9,0.11894688]
[1724850844924,6.95507,2528.4,2528.0,2.288]
[1724850845205,3.95507,2528.4,2528.0,2.288]
[1724850845562,3.95507,2528.4,2528.1,0.1188804]
[1724850846796,3.95523,2528.3,2528.1,0.1188804]
[1724850847090,7.91005,2528.5,2528.1,0.1188804]
[1724850847288,3.95499,2528.5,2528.2,19.56261009]
[1724850847601,3.95499,2528.5,2528.2,19.68143516]
[1724850847910,3.95507,2528.4,2528.2,19.68143516]
[1724850848074,3.95522,2528.3,2528.2,19.68143516]
[1724850849090,3.95507,2528.4,2528.2,19.68143516]
[1724850849402,3.95499,2528.5,2528.3,2.2851]
[1724850849774,3.95499,2528.5,2528.4,0.11874977]
[1724850849972,3.95434,2528.9,2528.5,2.2851]
[1724850850173,7.90872,2528.9,2528.5,4.48965624]
[1724850850403,3.95434,2528.9,2528.6,0.11867449]
[1724850850569,7.90876,2528.9,2528.6,0.11867449]
[1724850851107,3.95434,2528.9,2528.6,0.11867449]
[1724850851275,3.95413,2529.0,2528.7,19.56261009]
[1724850851611,3.95428,2528.9,2528.8,19.56261009]
[1724850851912,3.95428,2528.9,2528.8,19.68067924]
[1724850852460,3.95413,2529.0,2528.8,19.68067924]
[1724850852909,3.95428,2528.9,2528.8,19.68067924]
[1724850853411,3.95413,2529.0,2528.9,2.2565]
[1724850853702,6.95413,2529.0,2528.9,2.37453151]
[1724850854976,3.95398,2529.1,2528.9,2.37453151]
[1724850855179,3.95398,2529.1,2528.9,21.9371416]
[1724850855490,3.95382,2529.2,2528.9,21.9371416]
[1724850857307,7.90759,2529.3,2528.9,21.9371416]
[1724850857605,3.95345,2529.5,2529.1,2.416]
[1724850857994,3.95343,2529.5,2529.2,0.11704416]
[1724850858205,7.90689,2529.5,2529.2,0.11704416]
[1724850858375,3.95352,2529.4,2529.2,0.11704416]
[1724850859485,3.95352,2529.4,2529.3,19.56261009]
[1724850859893,3.95352,2529.4,2529.3,19.67946654]
[1724850861885,3.95343,2529.5,2529.3,19.67946654]
[1724850862393,7.90689,2529.5,2529.3,19.67946654]
[1724850862735,3.9535,2529.4,2529.3,19.67946654]
[1724850865084,3.95334,2529.6,2529.4,2.3269]
[1724850865412,6.95315,2529.7,2529.3,0.11685645]
[1724850865413,3.9535,2529.4,2529.3,0.11685645]
[1724850865594,3.9535,2529.4,2529.1,2.3269]
[1724850866225,3.95409,2529.1,2528.9,2.3269]
[1724850866589,3.95406,2529.1,2528.9,2.3269]
[1724850868213,3.95382,2529.2,2528.9,2.3269]
[1724850869011,3.95376,2529.3,2529.0,2.4716]
[1724850869813,7.90752,2529.3,2529.0,2.4716]
[1724850870033,3.95376,2529.3,2529.0,2.4716]
[1724850870204,3.95375,2529.3,2529.0,2.4716]
[1724850870392,3.95389,2529.2,2529.0,2.4716]
[1724850870990,7.90755,2529.3,2529.0,2.4716]
[1724850871221,3.95384,2529.2,2529.0,2.4716]
[1724850871385,3.95384,2529.2,2529.1,19.83]
[1724850871934,7.90768,2529.2,2529.1,19.83]
[1724850872144,8.998439,2529.2,2529.1,19.83]
[1724850872290,7.90768,2529.2,2529.1,19.83]
[1724850873629,19.74966,2529.2,2529.1,19.83]
[1724850873840,0.9343,2529.1,2528.1,2.2674]
[1724850874124,3.95552,2528.2,2528.1,2.2674]
[1724850874336,3.95552,2528.2,2528.1,22.0974]
[1724850874656,3.95523,2528.3,2528.1,22.0974]
[1724850875423,3.95538,2528.2,2528.1,22.0974]
[1724850876101,3.95538,2528.2,2528.1,22.21496416]
[1724850876690,7.91076,2528.2,2528.1,19.94756416]
[1724850877005,8.306298,2528.2,2528.1,19.94756416]
[1724850877326,7.91076,2528.2,2528.1,0.11756416]
[1724850877647,3.95538,2528.2,2527.9,19.83]
[1724850877796,3.95538,2528.2,2528.1,0.11751999]
[1724850877992,3.95553,2528.1,2528.0,0.11767249]
[1724850878191,3.95553,2528.1,2527.9,19.83]
[1724850878426,7.91117,2528.1,2527.9,19.83]
[1724850878630,3.95553,2528.1,2527.9,19.83]
[1724850878853,3.95536,2528.3,2528.0,2.3046]
[1724850879231,3.95519,2528.4,2528.0,2.3046]
[1724850879232,3.9554,2528.2,2528.0,2.3046]
[1724850880374,3.95515,2528.4,2528.0,2.74283107]
[1724850880547,3.95515,2528.4,2528.0,2.82193873]
[1724850880750,3.95515,2528.4,2528.0,6.77761873]
[1724850881246,3.0,2528.5,2527.9,19.83]
[1724850881442,11.86707,2528.0,2527.9,19.83]
[1724850881777,14.86707,2528.0,2527.9,19.83]
[1724850882584,10.91138,2528.0,2527.9,19.83]
[1724850884630,14.86707,2528.0,2527.9,19.83]
[1724850884833,16.353777,2528.0,2527.9,19.83]
[1724850885331,20.309467,2528.0,2527.9,19.83]
[1724850885535,7.91264,2527.6,2527.5,2.2936]
[1724850885735,10.91264,2527.6,2527.5,2.2936]
[1724850886341,3.9571,2527.1,2527.0,7.37]
[1724850886538,3.9571,2527.1,2527.0,10.17266206]
[1724850886738,3.95694,2527.2,2527.0,10.17266206]
[1724850886975,3.95694,2527.2,2527.1,2.437]
[1724850887358,7.91373,2527.3,2527.1,2.437]
[1724850887566,3.95694,2527.2,2527.1,2.437]
[1724850889263,3.95694,2527.2,2527.1,22.267]
[1724850890177,7.91388,2527.2,2527.1,22.267]
[1724850890503,7.91388,2527.2,2526.7,8.60993084]
[1724850890504,3.95726,2527.0,2526.9,22.2264]
[1724850890662,7.91452,2527.0,2526.9,2.3964]
[1724850890863,7.91482,2526.9,2526.8,19.83]
[1724850892513,3.95741,2526.9,2526.8,19.83]
[1724850892711,3.95721,2527.1,2526.9,2.2674]
[1724850892712,3.95726,2527.0,2526.9,2.2674]
[1724850893300,11.87178,2527.0,2526.9,2.2674]
[1724850894309,7.91452,2527.0,2526.9,2.2674]
[1724850898171,7.91452,2527.0,2526.9,22.0974]
[1724850899721,3.95726,2527.0,2526.9,22.0974]
[1724850900195,3.95663,2527.4,2527.0,2.4136]
[1724850900395,3.95613,2527.8,2527.2,3.95682]
[1724850900708,3.95647,2527.5,2527.4,2.4136]
[1724850901050,7.91294,2527.5,2527.4,2.4136]
[1724850901307,7.91294,2527.5,2527.3,19.83]
[1724850901308,7.91326,2527.4,2527.3,19.83]
[1724850902486,3.95656,2527.5,2527.3,22.1144]
[1724850903124,3.95663,2527.4,2527.3,22.1144]
[1724850903298,7.91326,2527.4,2527.3,19.83]
[1724850903621,12.265553,2527.4,2527.3,19.83]
[1724850904227,7.9142,2527.1,2527.0,22.2556]
[1724850904801,3.9571,2527.1,2527.0,22.2556]
[1724850905007,7.9142,2527.1,2527.0,22.2556]
[1724850906133,16.058401,2527.1,2527.0,0.1042155]
[1724850906300,16.058401,2527.1,2526.7,22.1287]
[1724850906301,3.95757,2526.8,2526.7,22.1287]
[1724850906507,3.95757,2526.8,2526.7,22.23302858]
[1724850907890,3.95735,2527.0,2526.7,22.23302858]
[1724850908093,3.95735,2527.0,2526.8,2.3362]
[1724850908094,3.95741,2526.9,2526.8,2.3362]
[1724850908296,3.95741,2526.9,2526.8,2.44049088]
[1724850908494,7.91482,2526.9,2526.8,2.44049088]
[1724850908853,7.91482,2526.9,2526.8,0.10429088]
[1724850909130,7.91514,2526.8,2526.7,22.2194]
[1724850910144,7.91514,2526.8,2526.7,22.1694]
[1724850910294,3.95757,2526.8,2526.7,22.1694]
[1724850911408,3.95741,2526.9,2526.7,22.1694]
[1724850911828,3.95717,2527.1,2526.7,22.1694]
[1724850912032,7.91441,2527.1,2526.9,2.3894]
[1724850912920,3.95717,2527.1,2526.9,2.3894]
[1724850913128,3.95717,2527.1,2527.0,19.78]
[1724850914131,11.87155,2527.1,2527.0,19.78]
[1724850914442,9.101515,2527.1,2527.0,19.78]
[1724850914933,7.91436,2527.1,2527.0,19.78]
[1724850915936,7.91436,2527.1,2527.0,22.1222]
[1724850918434,3.95696,2527.2,2527.0,22.1222]
[1724850918840,3.95694,2527.2,2527.0,22.1222]
[1724850919153,3.9571,2527.1,2527.0,2.3422]
[1724850920306,7.9142,2527.1,2527.0,2.3422]
[1724850920905,7.9142,2527.1,2527.0,2.44321683]
[1724850921701,3.9571,2527.1,2527.0,2.44321683]
[1724850921902,3.9569,2527.3,2527.0,2.44321683]
[1724850922124,3.95694,2527.2,2527.0,2.44321683]
[1724850922339,3.95694,2527.2,2527.0,0.10101683]
[1724850922340,7.9142,2527.1,2527.0,0.10101683]
[1724850922539,3.95763,2526.8,2526.4,9.7461]
[1724850922746,3.95775,2526.7,2526.5,19.83]
[1724850924938,3.95758,2526.8,2526.6,2.3979]
[1724850925749,3.95741,2526.9,2526.6,2.3979]
[1724850925750,3.95773,2526.7,2526.6,2.3979]
[1724850927975,3.95773,2526.7,2526.6,22.2279]
[1724850928934,3.95679,2527.3,2526.7,2.4195]
[1724850929145,4.89032,2527.8,2526.6,26.01059]
[1724850929146,3.95663,2527.4,2526.9,2.4195]
[1724850929375,3.95663,2527.4,2527.1,2.4195]
[1724850929540,3.95663,2527.4,2527.3,2.4195]
[1724850931138,3.95663,2527.4,2526.6,3.95779]
[1724850931139,3.95784,2526.7,2526.5,2.2806]
[1724850931338,0.9343,2527.6,2526.5,2.2806]
[1724850931339,3.95758,2526.8,2526.5,2.2806]
[1724850932049,3.95777,2526.7,2526.5,2.2806]
[1724850932300,3.0,2527.4,2526.5,2.2806]
[1724850932576,3.0,2527.4,2525.9,11.32886]
[1724850932577,3.95835,2526.3,2526.2,2.2806]
[1724850933284,3.95831,2526.4,2526.2,2.2806]
[1724850933876,3.95867,2526.1,2526.0,2.4197]
[1724850935062,7.91734,2526.1,2526.0,2.4197]
[1724850935999,7.91734,2526.1,2526.0,2.57661171]
[1724850936205,7.91688,2526.3,2526.0,2.57661171]
[1724850936391,3.95842,2526.3,2526.0,2.57661171]
[1724850936567,3.95859,2526.2,2526.0,2.57661171]
[1724850936771,3.95867,2526.1,2526.0,2.57661171]
[1724850937102,7.91734,2526.1,2526.0,0.15691171]
[1724850937261,8.709066,2526.1,2526.0,0.15691171]
[1724850937462,3.95914,2525.8,2525.7,2.4869]
[1724850938262,7.91828,2525.8,2525.7,2.4869]
[1724850938463,3.95961,2525.5,2525.4,22.3169]
[1724850938905,7.91922,2525.5,2525.4,22.3169]
[1724850939360,7.91922,2525.5,2525.4,19.83]
[1724850939807,3.95961,2525.5,2525.4,19.83]
[1724850940474,7.91922,2525.5,2525.4,19.83]
[1724850940798,7.91904,2525.6,2525.4,19.83]
[1724850940979,3.95961,2525.5,2525.4,19.83]
[1724850941173,3.9595,2525.6,2525.4,19.83]
[1724850942104,7.91852,2525.8,2525.4,19.83]
[1724850942303,3.95924,2525.8,2525.5,2.3784]
[1724850943003,3.95924,2525.8,2525.6,19.83]
[1724850943308,3.95932,2525.7,2525.6,19.83]
[1724850945565,7.91864,2525.7,2525.6,19.83]
[1724850946011,8.710504,2525.7,2525.6,19.83]
[1724850946317,8.710504,2525.7,2525.0,11.33039]
[1724850946318,3.95977,2525.4,2525.1,19.83]
[1724850946469,7.91996,2525.3,2525.2,19.83]
[1724850950900,7.91996,2525.3,2525.2,19.9851504]
[1724850951690,7.91996,2525.3,2525.2,0.1551504]
[1724850951890,9.1475337,2525.3,2525.2,0.1551504]
[1724850952091,3.96035,2525.1,2524.9,19.83]
[1724850952489,0.395977,2525.4,2525.0,2.3482]
[1724850952490,3.9599,2525.4,2525.0,2.3482]
[1724850952728,3.95986,2525.4,2525.0,2.3482]
[1724850953332,3.0,2525.6,2525.1,2.2769]
[1724850953485,3.0,2525.6,2525.2,4.03921026]
[1724850953685,3.0,2525.6,2525.4,2.2769]
[1724850953939,3.95908,2525.9,2525.4,2.2769]
[1724850954126,3.95908,2525.9,2525.4,6.86819103]
[1724850954429,3.95878,2526.1,2525.6,3.95936]
[1724850954729,3.95878,2526.1,2525.7,19.83]
[1724850954931,3.95878,2526.1,2525.8,2.2851]
[1724850955239,3.95876,2526.1,2525.8,2.2851]
[1724850955390,7.91751,2526.1,2525.8,2.2851]
[1724850955826,3.95875,2526.1,2525.8,2.2851]
[1724850956527,7.91751,2526.1,2525.8,2.2851]
[1724850957026,3.95891,2526.0,2525.8,2.2851]
[1724850957226,3.95898,2525.9,2525.7,19.83]
[1724850957749,3.95898,2525.9,2525.8,19.83]
[1724850959605,3.95883,2526.0,2525.8,19.83]
[1724850960140,3.95858,2526.2,2525.8,19.83]
[1724850960342,3.0,2526.1,2525.9,2.2642]
[1724850960540,3.95858,2526.2,2525.9,2.2642]
[1724850960900,6.9583,2526.4,2526.0,19.83]
[1724850960901,6.9582,2526.4,2526.0,19.83]
[1724850961100,3.95853,2526.2,2526.0,19.83]
[1724850961524,3.95867,2526.1,2526.0,19.83]
[1724850962246,3.95853,2526.2,2526.0,19.83]
[1724850962432,3.95867,2526.1,2526.0,19.83]
[1724850962626,3.95853,2526.2,2526.0,19.83]
[1724850963705,3.0,2526.4,2526.0,19.83]
[1724850964043,6.95828,2526.4,2526.0,19.83]
[1724850964516,3.0,2526.4,2526.0,23.78881]
[1724850964714,3.95806,2526.5,2526.0,27.74755]
[1724850964925,3.95784,2526.7,2526.2,6.38998]
[1724850965123,3.95784,2526.7,2526.3,19.83]
[1724850965827,3.95791,2526.6,2526.3,19.83]
[1724850966117,3.95791,2526.6,2526.4,0.15403695]
[1724850967432,3.95804,2526.5,2526.4,0.15403695]
[1724850969642,3.95804,2526.5,2526.4,19.98403695]
[1724850970518,3.95793,2526.6,2526.4,19.98403695]
[1724850971038,3.95793,2526.6,2526.5,2.3118]
[1724850971237,7.91534,2526.8,2526.5,2.46492666]
[1724850971418,4.37139488,2527.2,2526.5,2.46492666]
[1724850971419,3.95743,2526.9,2526.5,2.46492666]
[1724850971615,4.37141488,2527.2,2526.7,6.26942]
[1724850971852,3.9568,2527.3,2526.9,2.3118]
[1724850972059,3.9568,2527.3,2527.0,19.83]
[1724850972216,3.95664,2527.4,2527.0,19.98294427]
[1724850973220,3.95612,2527.8,2527.2,3.95687]
[1724850973420,7.91276,2527.6,2527.3,2.3811]
[1724850973615,7.91276,2527.6,2527.3,2.5331688]
[1724850973616,3.95657,2527.5,2527.3,2.5331688]
[1724850973947,3.95632,2527.6,2527.3,0.1520688]
[1724850973948,7.91326,2527.4,2527.3,0.1520688]
[1724850974541,3.95685,2527.3,2527.0,22.2111]
[1724850975053,3.95663,2527.4,2527.0,22.2111]
[1724850975255,7.91336,2527.4,2527.1,2.22111]
[1724850975461,7.91336,2527.4,2527.2,19.83]
[1724850975762,3.95663,2527.4,2527.2,19.83]
[1724850976643,7.91336,2527.4,2527.2,19.83]
[1724850977360,3.95663,2527.4,2527.2,21.00394107]
[1724850979225,3.95609,2527.8,2527.3,22.313]
[1724850979538,3.95633,2527.6,2527.4,2.22111]
[1724850980862,3.95616,2527.7,2527.5,2.483]
[1724850981043,3.95616,2527.7,2527.5,22.46369753]
[1724850981232,7.9124,2527.7,2527.5,23.6376386]
[1724850981431,3.95616,2527.7,2527.5,23.6376386]
[1724850981853,3.95593,2527.9,2527.5,3.8076386]
[1724850982053,3.95593,2527.9,2527.6,0.45988119]
[1724850982252,3.0,2528.0,2527.6,0.61048607]
[1724850982460,3.0,2528.0,2527.6,4.56680607]
[1724850982661,3.95557,2528.1,2527.7,2.3819]
[1724850982962,3.95557,2528.1,2527.8,2.3819]
[1724850983165,3.9553,2528.3,2527.9,19.83]
[1724850983374,3.95508,2528.4,2527.9,19.98038842]
[1724850983529,3.9554,2528.2,2527.9,19.98038842]
[1724850984323,3.95508,2528.4,2528.0,2.3944]
[1724850984622,3.95508,2528.4,2528.1,0.07910275]
[1724850984830,3.95508,2528.4,2528.1,0.22930593]
[1724850985595,3.95486,2528.6,2528.1,2.03568943]
[1724850986123,3.95499,2528.5,2528.1,2.03568943]
[1724850986419,7.90976,2528.6,2528.1,2.03568943]
[1724850986624,3.95496,2528.5,2528.1,2.03568943]
[1724850986981,3.95509,2528.4,2528.1,2.03568943]
[1724850987184,7.91029,2528.4,2528.1,0.15020318]
[1724850987536,3.95509,2528.4,2528.2,19.83]
[1724850987890,3.95509,2528.4,2528.3,0.15012328]
[1724850988333,3.95509,2528.4,2528.2,19.83]
[1724850988545,3.95509,2528.4,2528.3,0.15012328]
[1724850988827,3.95509,2528.4,2528.2,19.83]
[1724850989034,3.95509,2528.4,2528.3,0.15012328]
[1724850989190,3.95509,2528.4,2528.2,19.83]
[1724850989519,3.95509,2528.4,2528.3,0.15012328]
[1724850989883,3.95509,2528.4,2528.2,19.83]
[1724850990087,3.95509,2528.4,2528.3,0.15012328]
[1724850990497,3.95509,2528.4,2528.3,2.432]
[1724850990700,3.95509,2528.4,2528.3,2.58212328]
[1724850990928,7.9099,2528.5,2528.3,2.58212328]
[1724850991136,3.95491,2528.5,2528.3,2.58212328]
[1724850991298,7.9099,2528.5,2528.3,2.58212328]
[1724850991490,3.95507,2528.4,2528.3,2.58212328]
[1724850993423,3.95507,2528.4,2528.3,22.41212328]
[1724850994238,3.95491,2528.5,2528.3,22.41212328]
[1724850995304,7.9099,2528.5,2528.3,22.41212328]
[1724850995509,3.95507,2528.4,2528.3,22.41212328]
[1724850996952,3.95491,2528.6,2528.3,22.41212328]
[1724850997112,3.95491,2528.6,2528.4,19.83]
[1724850997451,3.95476,2528.6,2528.5,0.14914807]
[1724850997661,3.95476,2528.6,2528.5,19.97914807]
[1724850998255,3.95459,2528.8,2528.5,22.26044807]
[1724850998617,7.90918,2528.8,2528.5,22.26044807]
[1724850998817,3.95463,2528.7,2528.5,22.26044807]
[1724850999360,3.95459,2528.8,2528.5,22.26044807]
[1724850999546,7.90915,2528.8,2528.5,22.26044807]
[1724850999846,3.95454,2528.8,2528.5,24.88200688]
[1724851000049,7.90909,2528.8,2528.5,24.88200688]
[1724851000251,3.95454,2528.8,2528.5,24.88200688]
[1724851000827,3.95467,2528.7,2528.5,24.88200688]
[1724851001029,3.95454,2528.8,2528.5,24.88200688]
[1724851001263,7.9091,2528.8,2528.5,24.88200688]
[1724851001448,3.95454,2528.8,2528.5,24.88200688]
[1724851001824,3.9543,2528.9,2528.7,2.2813]
[1724851002341,3.9543,2528.9,2528.8,19.97902827]
[1724851002541,3.95425,2529.0,2528.8,19.97902827]
[1724851002712,3.95421,2529.0,2528.8,19.97902827]
[1724851002916,3.95421,2529.0,2528.9,19.83]
[1724851003111,3.95402,2529.1,2529.0,2.4286]
[1724851003556,3.95402,2529.1,2529.0,2.57754842]
[1724851005111,3.95393,2529.2,2529.0,2.57754842]
[1724851005314,3.95393,2529.2,2529.1,19.83]
[1724851005711,3.95393,2529.2,2529.1,19.977417]
[1724851007845,3.95393,2529.2,2529.1,22.2180187]
[1724851008220,3.95366,2529.3,2529.1,24.6763187]
[1724851009060,7.9074,2529.3,2529.1,24.6763187]
[1724851009221,3.95366,2529.3,2529.1,24.6763187]
[1724851009423,3.95366,2529.3,2529.2,1.15444937]
[1724851009657,3.95366,2529.3,2529.2,21.13163353]
[1724851011717,3.9535,2529.4,2529.3,2.4583]
[1724851012134,3.9535,2529.4,2529.3,2.60539163]
[1724851012419,3.9535,2529.4,2529.3,4.84599333]
[1724851012912,7.907,2529.4,2529.3,2.60539163]
[1724851014236,7.907,2529.4,2529.3,22.43539163]
[1724851017864,7.707,2529.4,2529.3,22.43539163]
[1724851020179,7.707,2529.4,2529.3,2.60539163]
[1724851020474,3.95337,2529.5,2529.3,2.86593079]
[1724851021280,3.95311,2529.7,2529.4,2.4556]
[1724851021526,3.9535,2529.4,2529.3,19.83]
[1724851021823,7.907,2529.4,2529.3,19.83]
[1724851024727,7.90762,2529.2,2529.1,2.4556]
[1724851026193,7.90762,2529.2,2529.1,2.59702321]
[1724851026389,3.95367,2529.3,2529.1,2.59702321]
[1724851026642,7.90742,2529.3,2529.1,2.59702321]
[1724851026804,3.95367,2529.3,2529.2,0.26760967]
[1724851027337,3.95367,2529.3,2529.2,0.40899296]
[1724851028617,3.95367,2529.3,2529.2,0.14138329]
[1724851029040,3.95367,2529.3,2529.2,19.97138329]
[1724851029973,6.95305,2529.7,2529.3,2.2954]
[1724851030110,6.95305,2529.7,2529.3,2.37446257]
[1724851030111,7.90617,2529.7,2529.3,2.37446257]
[1724851030311,3.95305,2529.7,2529.4,2.77126106]
[1724851030552,3.95305,2529.7,2529.5,2.2954]
[1724851030929,3.95305,2529.7,2529.6,0.14097876]
[1724851031129,3.95305,2529.7,2529.6,19.97097876]
[1724851031452,3.95305,2529.7,2529.6,20.73607224]
[1724851032011,3.95305,2529.7,2529.6,19.97097876]
[1724851034430,0.9343,2530.8,2529.7,2.2716]
[1724851034625,3.95253,2530.1,2529.7,2.2716]
[1724851034829,3.95253,2530.1,2529.8,0.14071532]
[1724851035151,3.95253,2530.1,2529.7,2.2716]
[1724851035475,3.95253,2530.1,2529.8,0.36787532]
[1724851035747,7.90507,2530.1,2529.8,0.36787532]
[1724851036154,7.90504,2530.1,2529.8,0.36787532]
[1724851036661,3.95257,2530.0,2529.8,0.36787532]
[1724851037442,3.95251,2530.1,2529.8,0.36787532]
[1724851037759,3.95226,2530.2,2529.9,2.3748]
[1724851038230,3.95241,2530.1,2530.0,0.1398398]
[1724851038430,3.95241,2530.1,2530.0,0.41328002]
[1724851041034,3.95241,2530.1,2530.0,20.24328002]
[1724851041260,3.95227,2530.2,2530.0,20.24328002]
[1724851041561,7.90467,2530.2,2530.0,20.24328002]
[1724851041751,3.95227,2530.2,2530.1,2.261808]
[1724851042139,3.95227,2530.2,2530.1,2.40122331]
[1724851043449,3.95227,2530.2,2530.1,0.13941531]
[1724851043769,7.9046,2530.2,2530.1,0.13941531]
[1724851046970,7.9046,2530.2,2530.1,19.96941531]
[1724851050569,7.9046,2530.2,2530.1,22.35361531]
[1724851051145,7.90452,2530.2,2530.1,19.96941531]
[1724851052076,3.95225,2530.2,2530.1,19.96941531]
[1724851052235,3.95225,2530.2,2530.1,22.20477684]
[1724851052989,3.95222,2530.3,2530.1,22.20477684]
[1724851053153,3.95222,2530.3,2530.2,2.4834]
[1724851053360,3.95222,2530.3,2530.2,2.6224083]
[1724851053537,3.95222,2530.3,2530.2,3.78209784]
[1724851054262,7.9044,2530.3,2530.2,0.1390083]
[1724851056078,7.9044,2530.3,2530.0,19.83]
[1724851056260,3.95241,2530.1,2530.0,19.83]
[1724851057651,3.95226,2530.2,2530.0,19.83]
[1724851057652,3.95226,2530.2,2530.0,22.2185]
[1724851057856,3.95226,2530.2,2530.1,4.3715]
[1724851061740,3.95226,2530.2,2530.1,24.2015]
[1724851061942,3.95226,2530.2,2530.1,22.2185]
[1724851062242,7.90452,2530.2,2530.1,22.2185]
[1724851062662,7.90452,2530.2,2530.1,19.83]
[1724851062893,3.95319,2529.6,2529.5,19.83]
[1724851063173,7.907,2529.4,2529.3,19.83]
[1724851063393,3.95342,2529.5,2529.1,2.4902]
[1724851063394,3.95381,2529.2,2529.1,2.4902]
[1724851063538,7.90762,2529.2,2529.1,2.4902]
[1724851064358,7.90794,2529.1,2529.0,19.83]
[1724851066152,1.186167,2529.1,2528.6,19.83]
[1724851066506,7.9092,2528.7,2528.6,19.83]
[1724851068967,3.95438,2528.9,2528.6,19.83]
[1724851069175,3.95444,2528.8,2528.7,2.4562]
[1724851069377,3.95438,2528.9,2528.7,2.4562]
[1724851069713,3.95444,2528.8,2528.7,2.4562]
[1724851070008,7.90888,2528.8,2528.7,2.4562]
[1724851070913,7.90888,2528.8,2528.7,22.42216721]
[1724851072012,3.95444,2528.8,2528.7,24.66438393]
[1724851073173,3.95444,2528.8,2528.7,22.42216721]
[1724851073587,3.9543,2528.9,2528.7,22.42216721]
[1724851073804,3.95432,2528.9,2528.7,22.42216721]
[1724851074035,7.90872,2528.9,2528.7,22.42216721]
[1724851074245,3.95432,2528.9,2528.7,22.42216721]
[1724851074822,3.95432,2528.9,2528.8,2.24221672]
[1724851075016,3.95407,2529.1,2528.9,2.2838]
[1724851075217,3.95407,2529.1,2528.9,22.1138]
[1724851075422,3.95413,2529.0,2528.9,22.1138]
[1724851075621,3.95413,2529.0,2528.9,24.32518]
[1724851076031,7.90826,2529.0,2528.9,22.1138]
[1724851077339,11.86239,2529.0,2528.9,19.83]
[1724851077646,14.86239,2529.0,2528.9,19.83]
[1724851078019,10.90826,2529.0,2528.9,19.83]
[1724851079609,3.95444,2528.8,2528.7,19.83]
[1724851080423,3.95413,2529.0,2528.7,19.83]
[1724851080838,3.95444,2528.8,2528.7,19.83]
[1724851081542,3.95444,2528.8,2528.7,22.25710107]
[1724851082056,7.90888,2528.8,2528.7,22.25710107]
[1724851082263,7.90888,2528.8,2528.7,19.83]
[1724851082760,3.95444,2528.8,2528.7,19.83]
[1724851083760,3.95437,2528.9,2528.7,19.83]
[1724851084098,3.95413,2529.0,2528.8,2.4765]
[1724851084237,3.95413,2529.0,2528.9,2.23065]
[1724851084674,7.90841,2529.0,2528.9,2.23065]
[1724851085079,3.95428,2528.9,2528.8,2.4765]
[1724851085581,3.95428,2528.9,2528.8,22.3065]
[1724851085948,3.95428,2528.9,2528.8,22.44352664]
[1724851086580,7.90856,2528.9,2528.8,22.44352664]
[1724851086769,7.90856,2528.9,2528.8,19.96702664]
[1724851086971,11.86284,2528.9,2528.8,0.13702664]
[1724851087187,7.9092,2528.7,2528.6,19.83]
[1724851087481,7.9092,2528.7,2528.6,19.96709777]
[1724851089520,14.8638,2528.7,2528.6,19.96709777]
[1724851090398,14.8638,2528.7,2528.6,18.96709777]
[1724851090804,16.35018,2528.7,2528.6,18.96709777]
[1724851093910,16.35018,2528.7,2528.6,0.13709777]
[1724851094125,16.35018,2528.7,2527.8,22.78587]
[1724851094126,7.91014,2528.4,2528.3,2.3751]
[1724851094337,7.91014,2528.4,2528.3,2.51255333]
[1724851095113,7.91014,2528.4,2528.3,2.3751]
[1724851096027,3.95586,2527.9,2527.6,18.83]
[1724851096343,3.95586,2527.9,2527.7,0.138575]
[1724851096651,7.91183,2527.9,2527.8,2.4755]
[1724851096804,3.95586,2527.9,2527.8,2.61403504]
[1724851098641,6.95515,2528.4,2527.8,4.09442504]
[1724851098852,6.95515,2528.4,2528.0,2.4434]
[1724851099348,6.95515,2528.4,2528.2,2.4434]
[1724851099650,10.91032,2528.4,2528.3,18.96845757]
[1724851104448,15.956522,2528.4,2528.3,0.13845757]
[1724851104750,7.91106,2528.1,2528.0,2.3491]
[1724851104948,7.91106,2528.1,2528.0,2.48760754]
[1724851105251,3.95531,2528.3,2528.1,2.3491]
[1724851105409,3.95501,2528.5,2528.3,2.3491]